[Event "Kwalificatie NJK B Groningen"]
[Site "Hoogkerk, Netherlands"]
[Date "2023.02.18"]
[Round "2.8"]
[White "Snijders, Take"]
[Black "Fallaux, Storm"]
[Result "1-0"]
[TimeControl "55 min. + 10 sec./zet"]
[WhiteElo "1848"]
[BlackElo "1643"]

1. e4 {[%clk 00:55:17]} {[%emt 00:00:32]} c5 {[%clk 00:55:15]} 2. Nf3 {[%clk
00:55:24]} {[%emt 00:00:53]} d6 {[%clk 00:55:21]} 3. d4 {[%clk 00:55:31]} cxd4
{[%clk 00:55:28]} 4. Nxd4 {[%clk 00:55:36]} Nf6 {[%clk 00:55:33]} 5. Nc3 {[%clk
00:55:43]} a6 {[%clk 00:55:39]} 6. Bg5 {[%clk 00:55:43]} {[%emt 00:00:10]} e5
{[%clk 00:55:30]} 7. Nf5 {[%clk 00:55:23]} {[%emt 00:00:04]} Be6 {[%clk
00:54:31]} {[%emt 00:01:07]} 8. Qd2 {[%clk 00:52:59]} {[%emt 00:02:36]} Nc6
{[%clk 00:51:27]} {[%emt 00:03:12]} 9. O-O-O {[%clk 00:50:29]} {[%emt
00:02:49]} Bxf5 {[%clk 00:50:36]} {[%emt 00:01:02]} 10. exf5 {[%clk 00:50:23]}
{[%emt 00:00:17]} Qc7 {[%clk 00:50:33]} {[%emt 00:00:07]} 11. Bxf6 {[%clk
00:48:03]} {[%emt 00:02:24]} gxf6 {[%clk 00:50:32]} {[%emt 00:00:41]} 12. Ne4
{[%clk 00:46:27]} {[%emt 00:01:47]} O-O-O {[%clk 00:47:49]} {[%emt 00:02:23]}
13. Nxf6 {[%clk 00:45:37]} {[%emt 00:01:12]} Nd4 {[%clk 00:43:58]} {[%emt
00:03:49]} 14. Bd3 {[%clk 00:32:11]} {[%emt 00:13:39]} h5 {[%clk 00:39:29]}
{[%emt 00:04:50]} 15. Nd5 {[%clk 00:30:46]} {[%emt 00:01:22]} Qc5 {[%clk
00:37:51]} {[%emt 00:02:08]} 16. Qc3 {[%clk 00:30:16]} {[%emt 00:00:19]} Bh6+
{[%clk 00:36:40]} {[%emt 00:01:22]} 17. Kb1 {[%clk 00:30:11]} {[%emt 00:00:39]}
Qxc3 {[%clk 00:35:55]} {[%emt 00:00:31]} 18. bxc3 {[%clk 00:28:08]} {[%emt
00:03:18]} Nc6 {[%clk 00:35:11]} 19. Be4 {[%clk 00:23:56]} {[%emt 00:04:10]}
Bg5 {[%clk 00:32:27]} {[%emt 00:02:54]} 20. h4 {[%clk 00:20:39]} {[%emt
00:03:26]} Bh6 {[%clk 00:32:00]} {[%emt 00:00:42]} 21. Rdg1 {[%clk 00:19:36]}
{[%emt 00:01:11]} Bf8 {[%clk 00:31:03]} {[%emt 00:01:08]} 22. g4 {[%clk
00:19:05]} {[%emt 00:00:37]} hxg4 {[%clk 00:30:17]} {[%emt 00:01:37]} 23. Rxg4
{[%clk 00:19:04]} Ne7 {[%clk 00:30:05]} 24. Nxe7+ {[%clk 00:18:54]} {[%emt
00:00:12]} Bxe7 {[%clk 00:30:13]} {[%emt 00:00:29]} 25. Bd5 {[%clk 00:17:49]}
{[%emt 00:00:54]} Rdf8 {[%clk 00:29:39]} {[%emt 00:00:37]} 26. Rb4 {[%clk
00:17:01]} {[%emt 00:01:36]} b5 {[%clk 00:27:43]} {[%emt 00:01:32]} 27. c4
{[%clk 00:16:38]} {[%emt 00:00:31]} Rh5 {[%clk 00:27:12]} {[%emt 00:01:01]} 28.
cxb5 {[%clk 00:16:16]} {[%emt 00:00:21]} axb5 {[%clk 00:27:14]} 29. Rxb5 {[%clk
00:13:01]} {[%emt 00:03:50]} Rxh4 {[%clk 00:26:45]} {[%emt 00:00:42]} 30. Rxh4
{[%clk 00:12:49]} Bxh4 {[%clk 00:26:53]} {[%emt 00:00:16]} 31. f3 {[%clk
00:12:31]} {[%emt 00:00:09]} Bf2 {[%clk 00:25:39]} {[%emt 00:01:35]} 32. a4
{[%clk 00:11:58]} {[%emt 00:00:29]} Rg8 {[%clk 00:25:09]} {[%emt 00:00:40]} 33.
Kb2 {[%clk 00:10:24]} {[%emt 00:01:44]} Bd4+ {[%clk 00:25:06]} {[%emt
00:00:13]} 34. c3 {[%clk 00:10:05]} {[%emt 00:00:29]} Rg2+ {[%clk 00:24:55]}
{[%emt 00:01:07]} 35. Kb3 {[%clk 00:10:04]} Bc5 {[%clk 00:24:34]} 36. Bxf7
{[%clk 00:09:59]} {[%emt 00:00:13]} Rg1 {[%clk 00:23:51]} {[%emt 00:00:56]} 37.
Kc4 {[%clk 00:09:05]} {[%emt 00:01:41]} Ra1 {[%clk 00:22:22]} {[%emt 00:00:57]}
38. a5 {[%clk 00:08:37]} {[%emt 00:00:38]} Ra4+ {[%clk 00:22:19]} {[%emt
00:00:51]} 39. Kd3 {[%clk 00:08:25]} Rf4 {[%clk 00:21:35]} {[%emt 00:00:38]} 40.
Bd5 {[%clk 00:08:30]} {[%emt 00:00:51]} Kd8 {[%clk 00:21:17]} 41. Be4 {[%clk
00:08:02]} {[%emt 00:00:44]} Ke7 {[%clk 00:20:46]} {[%emt 00:00:38]} 42. a6
{[%clk 00:06:51]} {[%emt 00:01:02]} Bf2 {[%clk 00:20:23]} {[%emt 00:01:10]} 43.
a7 {[%clk 00:06:53]} Bxa7 {[%clk 00:20:24]} 44. Rb7+ {[%clk 00:07:00]} Kf6
{[%clk 00:20:25]} 45. Rxa7 {[%clk 00:06:58]} {[%emt 00:00:04]} d5 {[%clk
00:20:21]} {[%emt 00:00:15]} 46. Bxd5 {[%clk 00:06:35]} {[%emt 00:00:53]} Kxf5
{[%clk 00:19:47]} {[%emt 00:00:44]} 47. Rf7+ {[%clk 00:06:42]} Kg5 {[%clk
00:19:40]} 48. Rxf4 {[%clk 00:06:46]} {[%emt 00:00:04]} exf4 {[%clk 00:19:23]}
{[%emt 00:00:28]} 49. Ke4 {[%clk 00:06:48]} {[%emt 00:00:15]} Kh5 {[%clk
00:19:21]} {[%emt 00:00:05]} 50. c4 {[%clk 00:06:48]} {[%emt 00:00:45]} Kh4
{[%clk 00:19:24]} 51. c5 {[%clk 00:06:51]} Kh5 {[%clk 00:19:31]} 52. c6 {[%clk
00:06:56]} Kg5 {[%clk 00:19:36]} 53. c7 {[%clk 00:07:01]} Kf6 {[%clk 00:19:42]}
54. c8=Q {[%clk 00:06:58]} {[%emt 00:00:48]} Kg5 {[%clk 00:19:49]} 55. Qg4+
{[%clk 00:07:00]} Kf6 {[%clk 00:19:52]} {[%emt 00:00:23]} 56. Qxf4+ {[%clk
00:06:53]} Kg7 {[%clk 00:19:57]} 57. Qf7+ {[%clk 00:06:47]} Kh6 {[%clk
00:19:49]} {[%emt 00:00:49]} 58. Qg8 {[%clk 00:06:48]} Kh5 {[%clk 00:19:53]}
{[%emt 00:00:09]} 59. Kf5 {[%clk 00:06:49]} Kh6 {[%clk 00:19:55]} 60. Qg6+
{[%clk 00:06:51]} {[%emt 00:00:13]} 1-0

[Event "Kwalificatie NJK B Groningen"]
[Site "Hoogkerk, Netherlands"]
[Date "2023.02.18"]
[Round "2.9"]
[White "Lee, Jungmin"]
[Black "Ambrona Navarro, Himar"]
[Result "1-0"]
[TimeControl "55 min. + 10 sec./zet"]
[WhiteElo "1600"]
[BlackElo "1847"]

1. d4 {[%emt 00:23:11]} Nf6 {[%emt 00:00:15]} 2. c4 {[%emt 00:00:23]} g6 3. Nf3
{[%emt 00:01:13]} Bg7 4. g3 O-O {[%emt 00:00:29]} 5. Bg2 {[%emt 00:00:52]} d6
{[%emt 00:00:08]} 6. O-O {[%emt 00:00:09]} Nbd7 {[%emt 00:00:15]} 7. Bf4 {[%emt
00:01:45]} Nh5 {[%emt 00:01:08]} 8. Bc1 {[%emt 00:00:56]} e5 {[%emt 00:01:11]}
9. e3 {[%emt 00:02:05]} e4 {[%emt 00:02:30]} 10. Nfd2 {[%emt 00:00:59]} f5
{[%emt 00:00:21]} 11. Qc2 {[%emt 00:02:16]} c5 {[%emt 00:02:45]} 12. b3 {[%emt
00:01:57]} cxd4 {[%emt 00:01:16]} 13. exd4 Bxd4 {[%emt 00:01:24]} 14. Bb2 Bxb2
{[%emt 00:00:44]} 15. Qxb2 Qf6 {[%emt 00:00:05]} 16. Nc3 {[%emt 00:01:03]} Nc5
{[%emt 00:03:37]} 17. Qc2 {[%emt 00:03:15]} Nd3 {[%emt 00:02:00]} 18. Ndxe4
{[%emt 00:03:05]} fxe4 {[%emt 00:01:41]} 19. Nxe4 Qd4 {[%emt 00:00:19]} 20.
Rad1 {[%emt 00:00:29]} Nb4 {[%emt 00:01:16]} 21. Qb1 {[%emt 00:02:26]} Qe5
{[%emt 00:02:50]} 22. Rfe1 {[%emt 00:00:28]} Qa5 {[%emt 00:03:30]} 23. Qc1
{[%emt 00:00:56]} Bf5 {[%emt 00:04:39]} 24. Nxd6 {[%emt 00:01:08]} Qc7 {[%emt
00:01:19]} 25. Qc3 {[%emt 00:00:54]} Nd3 {[%emt 00:03:02]} 26. Bd5+ {[%emt
00:00:30]} Qf7 {[%emt 00:03:58]} 27. Bxf7+ Rxf7 28. Nxf7 Kxf7 {[%emt 00:01:36]}
29. Rxd3 1-0

[Event "Kwalificatie NJK B Groningen"]
[Site "Hoogkerk, Netherlands"]
[Date "2023.02.18"]
[Round "3.1"]
[White "Terlouw, Wouter"]
[Black "Etienne, Ghilon"]
[Result "1-0"]
[TimeControl "55 min. + 10 sec./zet"]
[WhiteElo "1925"]
[BlackElo "1673"]

1. d4 {[%clk 00:55:19]} {[%emt 00:00:16]} Nf6 {[%clk 00:55:14]} 2. c4 g6 3. f3
{[%emt 00:00:14]} Bg7 {[%clk 00:55:23]} 4. e4 {[%clk 00:55:36]} {[%emt
00:00:04]} d6 {[%clk 00:55:30]} {[%emt 00:00:10]} 5. Nc3 {[%emt 00:01:04]} O-O
{[%clk 00:55:26]} 6. Be3 {[%clk 00:55:52]} e5 {[%clk 00:55:10]} 7. d5 {[%clk
00:55:52]} a5 {[%clk 00:55:10]} {[%emt 00:00:05]} 8. Qd2 {[%emt 00:01:14]} Ne8
{[%clk 00:53:42]} {[%emt 00:00:29]} 9. g4 {[%clk 00:55:51]} Qh4+ {[%clk
00:53:13]} {[%emt 00:00:40]} 10. Bf2 {[%emt 00:01:04]} Qe7 {[%clk 00:52:51]} 11.
Nge2 {[%clk 00:55:34]} {[%emt 00:02:11]} Na6 12. Nc1 {[%clk 00:55:07]} {[%emt
00:08:02]} Bd7 {[%clk 00:41:33]} 13. Nd3 {[%emt 00:02:39]} Nc5 14. O-O-O {[%clk
00:54:20]} {[%emt 00:01:51]} a4 {[%clk 00:40:57]} 15. h4 {[%clk 00:54:01]}
{[%emt 00:00:37]} a3 {[%clk 00:37:21]} {[%emt 00:03:17]} 16. b3 {[%clk
00:54:02]} {[%emt 00:00:43]} b6 {[%clk 00:36:55]} {[%emt 00:00:05]} 17. Be3
{[%clk 00:52:22]} {[%emt 00:02:07]} f6 {[%clk 00:36:25]} {[%emt 00:00:19]} 18.
Kb1 {[%clk 00:49:38]} {[%emt 00:02:54]} c6 {[%clk 00:35:47]} {[%emt 00:00:48]}
19. Nxc5 {[%clk 00:48:56]} {[%emt 00:01:42]} dxc5 {[%clk 00:35:43]} 20. dxc6
{[%clk 00:48:54]} Bxc6 {[%clk 00:35:47]} 21. Nd5 {[%clk 00:48:59]} Qb7 {[%clk
00:35:20]} {[%emt 00:00:27]} 22. h5 {[%clk 00:42:13]} {[%emt 00:07:00]} g5
{[%clk 00:34:35]} {[%emt 00:00:52]} 23. Bd3 {[%clk 00:41:17]} {[%emt 00:01:07]}
h6 {[%clk 00:34:08]} {[%emt 00:01:13]} 24. Kc2 {[%clk 00:40:56]} Rf7 {[%clk
00:33:35]} {[%emt 00:00:36]} 25. Rb1 {[%clk 00:40:54]} {[%emt 00:00:10]} Bf8
{[%clk 00:29:31]} {[%emt 00:04:13]} 26. Rhc1 {[%clk 00:40:18]} {[%emt
00:00:46]} Qa7 {[%clk 00:27:41]} {[%emt 00:02:30]} 27. Kd1 {[%clk 00:40:02]}
{[%emt 00:00:30]} Qa5 {[%clk 00:22:30]} {[%emt 00:04:50]} 28. Qf2 {[%clk
00:38:41]} {[%emt 00:01:58]} Rd8 {[%clk 00:18:20]} {[%emt 00:03:51]} 29. Ke2
{[%clk 00:38:10]} {[%emt 00:00:41]} Nc7 {[%clk 00:16:30]} {[%emt 00:02:02]} 30.
Kf1 {[%clk 00:36:44]} {[%emt 00:01:59]} Ne6 {[%clk 00:16:15]} {[%emt 00:00:09]}
31. b4 {[%clk 00:36:19]} {[%emt 00:00:30]} Qa7 {[%clk 00:14:30]} {[%emt
00:02:10]} 32. bxc5 {[%clk 00:35:49]} {[%emt 00:00:47]} bxc5 {[%clk 00:13:57]}
{[%emt 00:00:59]} 33. Rc3 {[%clk 00:34:59]} {[%emt 00:00:59]} Rb8 {[%clk
00:11:24]} {[%emt 00:02:00]} 34. Rxb8 {[%clk 00:34:43]} {[%emt 00:01:17]} Qxb8
{[%clk 00:11:26]} 35. Rxa3 {[%clk 00:34:40]} Bxd5 {[%clk 00:10:58]} {[%emt
00:00:42]} 36. exd5 {[%clk 00:33:49]} {[%emt 00:00:27]} Nf4 {[%clk 00:10:08]}
{[%emt 00:01:00]} 37. Bxf4 {[%clk 00:29:10]} {[%emt 00:05:07]} exf4 {[%clk
00:09:46]} {[%emt 00:00:40]} 38. Rb3 {[%clk 00:27:29]} {[%emt 00:01:42]} Qe5
{[%clk 00:09:40]} 39. Bf5 {[%clk 00:27:08]} {[%emt 00:01:19]} Ra7 {[%clk
00:09:04]} 40. Qb2 {[%clk 00:25:06]} {[%emt 00:02:07]} Qd6 {[%clk 00:05:01]}
{[%emt 00:04:37]} 41. Rb6 {[%clk 00:21:41]} {[%emt 00:03:45]} Qe5 {[%clk
00:03:41]} {[%emt 00:01:39]} 42. Qxe5 {[%clk 00:20:49]} {[%emt 00:01:28]} fxe5
{[%clk 00:03:50]} 43. d6 {[%clk 00:20:50]} Rxa2 {[%clk 00:02:16]} {[%emt
00:01:34]} 44. Rb8 {[%clk 00:20:52]} Rd2 {[%clk 00:01:39]} {[%emt 00:00:29]} 45.
d7 {[%clk 00:20:55]} e4 {[%clk 00:01:23]} {[%emt 00:00:29]} 46. fxe4 {[%clk
00:20:35]} {[%emt 00:00:18]} f3 {[%clk 00:01:24]} {[%emt 00:00:30]} 47. d8=Q
{[%clk 00:20:39]} Rxd8 {[%clk 00:01:32]} 48. Rxd8 Kf7 49. Bg6+ {[%clk
00:20:38]} {[%emt 00:01:05]} Kg7 {[%clk 00:01:43]} 50. e5 {[%clk 00:20:39]} f2
{[%clk 00:01:50]} 51. e6 {[%clk 00:20:38]} Kf6 {[%clk 00:01:39]} 52. Rxf8+
{[%clk 00:20:39]} {[%emt 00:00:05]} Kxe6 {[%clk 00:01:48]} 53. Kxf2 {[%clk
00:20:32]} {[%emt 00:00:29]} Ke7 {[%clk 00:01:54]} 54. Re8+ {[%clk 00:20:29]}
{[%emt 00:00:30]} Kf6 {[%clk 00:02:03]} 55. Ke3 {[%clk 00:20:29]} Kg7 {[%clk
00:02:12]} 56. Ke4 {[%clk 00:20:12]} {[%emt 00:00:51]} Kf6 {[%clk 00:02:21]} 57.
Re5 {[%clk 00:20:05]} Kg7 {[%clk 00:02:30]} 58. Re7+ {[%clk 00:20:07]} {[%emt
00:00:40]} Kf6 {[%clk 00:02:36]} 59. Re5 {[%clk 00:19:52]} Kg7 {[%clk
00:02:45]} 60. Kf5 {[%clk 00:19:44]} Kf8 {[%clk 00:02:45]} 61. Kf6 {[%clk
00:19:48]} {[%emt 00:00:36]} Kg8 {[%clk 00:02:54]} 62. Re8# {[%clk 00:19:47]}
1-0

[Event "Kwalificatie NJK B Groningen"]
[Site "Hoogkerk, Netherlands"]
[Date "2023.02.18"]
[Round "3.2"]
[White "Knippenberg, Hidde"]
[Black "Ritzerveld, Noah"]
[Result "0-1"]
[TimeControl "55 min. + 10 sec./zet"]
[WhiteElo "1721"]
[BlackElo "1868"]

1. b3 {[%clk 00:55:18]} e5 {[%clk 00:55:01]} {[%emt 00:00:20]} 2. Bb2 {[%clk
00:55:25]} {[%emt 00:00:03]} Nc6 {[%clk 00:54:58]} {[%emt 00:00:14]} 3. e3
{[%clk 00:55:31]} {[%emt 00:00:03]} d5 {[%clk 00:55:03]} {[%emt 00:00:05]} 4.
Bb5 {[%clk 00:55:38]} {[%emt 00:00:03]} Bd6 {[%clk 00:55:06]} {[%emt 00:00:07]}
5. f4 {[%clk 00:55:45]} {[%emt 00:00:03]} Qe7 {[%clk 00:54:30]} {[%emt
00:00:46]} 6. Nf3 {[%clk 00:54:51]} {[%emt 00:01:04]} f6 {[%clk 00:54:03]}
{[%emt 00:00:38]} 7. fxe5 {[%clk 00:54:24]} {[%emt 00:00:37]} fxe5 {[%clk
00:54:01]} {[%emt 00:00:12]} 8. Nxe5 {[%clk 00:54:21]} {[%emt 00:00:13]} Bxe5
{[%clk 00:52:07]} {[%emt 00:02:04]} 9. Bxc6+ {[%clk 00:53:31]} {[%emt
00:01:00]} Kd8 {[%clk 00:50:04]} {[%emt 00:02:13]} 10. d4 {[%clk 00:50:47]}
{[%emt 00:02:54]} Bg3+ {[%clk 00:42:45]} {[%emt 00:07:29]} 11. Kd2 {[%clk
00:48:36]} {[%emt 00:02:20]} Bf2 {[%clk 00:32:37]} {[%emt 00:10:18]} 12. Qf3
{[%clk 00:43:23]} {[%emt 00:05:23]} Bxe3+ {[%clk 00:31:24]} {[%emt 00:01:24]}
13. Qxe3 {[%clk 00:43:01]} {[%emt 00:00:32]} Qxe3+ {[%clk 00:31:21]} {[%emt
00:00:12]} 14. Kxe3 {[%clk 00:43:07]} {[%emt 00:00:05]} bxc6 {[%clk 00:31:27]}
{[%emt 00:00:05]} 15. Nc3 {[%clk 00:21:33]} {[%emt 00:21:43]} Nf6 {[%clk
00:30:23]} {[%emt 00:01:14]} 16. h3 {[%clk 00:19:18]} {[%emt 00:02:25]} Re8+
{[%clk 00:29:09]} {[%emt 00:01:24]} 17. Kd2 {[%clk 00:19:19]} {[%emt 00:00:08]}
Bf5 {[%clk 00:27:33]} {[%emt 00:01:46]} 18. Rhe1 {[%clk 00:18:50]} {[%emt
00:00:39]} Be4 {[%clk 00:26:17]} {[%emt 00:01:27]} 19. Re2 {[%clk 00:17:43]}
{[%emt 00:01:16]} h6 {[%clk 00:16:37]} {[%emt 00:09:50]} 20. Rae1 {[%clk
00:16:01]} {[%emt 00:01:52]} Ke7 {[%clk 00:15:42]} {[%emt 00:01:05]} 21. Nxe4
{[%clk 00:15:37]} {[%emt 00:00:34]} Nxe4+ {[%clk 00:15:43]} {[%emt 00:00:09]}
22. Rxe4+ {[%clk 00:15:43]} {[%emt 00:00:05]} dxe4 {[%clk 00:15:35]} {[%emt
00:00:18]} 23. Rxe4+ {[%clk 00:15:49]} {[%emt 00:00:03]} Kd7 {[%clk 00:14:13]}
{[%emt 00:01:32]} 24. Rxe8 {[%clk 00:13:25]} {[%emt 00:02:34]} Rxe8 {[%clk
00:14:16]} {[%emt 00:00:07]} 25. Ba3 {[%clk 00:13:31]} {[%emt 00:00:04]} Re4
{[%clk 00:13:09]} {[%emt 00:01:17]} 26. Kd3 {[%clk 00:10:39]} {[%emt 00:03:03]}
Re6 {[%clk 00:12:50]} {[%emt 00:00:29]} 27. Bc5 {[%clk 00:09:59]} {[%emt
00:00:49]} a6 {[%clk 00:12:49]} {[%emt 00:00:11]} 28. a4 {[%clk 00:09:28]}
{[%emt 00:00:42]} h5 {[%clk 00:12:13]} {[%emt 00:00:46]} 29. Kc4 {[%clk
00:04:13]} {[%emt 00:05:24]} Re2 {[%clk 00:11:51]} {[%emt 00:00:32]} 30. g4
{[%clk 00:03:16]} {[%emt 00:01:07]} hxg4 {[%clk 00:11:29]} {[%emt 00:00:32]} 31.
hxg4 {[%clk 00:03:25]} {[%emt 00:00:02]} Rxc2+ {[%clk 00:11:11]} {[%emt
00:00:27]} 32. Kb4 {[%clk 00:03:34]} {[%emt 00:00:01]} Kc8 {[%clk 00:10:50]}
{[%emt 00:00:31]} 33. g5 {[%clk 00:03:28]} {[%emt 00:00:16]} Rg2 {[%clk
00:10:14]} {[%emt 00:00:46]} 34. Ka5 {[%clk 00:03:06]} {[%emt 00:00:33]} Rxg5
{[%clk 00:09:18]} {[%emt 00:01:05]} 35. Kxa6 {[%clk 00:03:14]} {[%emt
00:00:03]} Rg3 {[%clk 00:08:04]} {[%emt 00:01:24]} 36. b4 {[%clk 00:03:21]}
{[%emt 00:00:03]} Ra3 {[%clk 00:07:20]} {[%emt 00:00:53]} 37. a5 {[%clk
00:03:24]} {[%emt 00:00:08]} Ra2 {[%clk 00:06:45]} {[%emt 00:00:45]} 38. b5
{[%clk 00:03:23]} {[%emt 00:00:11]} cxb5 {[%clk 00:06:41]} {[%emt 00:00:13]} 39.
Kxb5 {[%clk 00:03:31]} {[%emt 00:00:02]} Kb7 {[%clk 00:06:04]} {[%emt
00:00:47]} 40. Be7 {[%clk 00:03:40]} {[%emt 00:00:02]} g6 {[%clk 00:05:39]}
{[%emt 00:00:35]} 41. Bf6 {[%clk 00:03:18]} {[%emt 00:00:31]} c6+ {[%clk
00:05:08]} {[%emt 00:00:42]} 42. Kb4 {[%clk 00:03:15]} {[%emt 00:00:13]} Rf2
{[%clk 00:05:06]} {[%emt 00:00:12]} 43. Be7 {[%clk 00:03:04]} {[%emt 00:00:20]}
Rf5 {[%clk 00:05:13]} {[%emt 00:00:03]} 44. Bd6 {[%clk 00:02:37]} {[%emt
00:00:38]} g5 {[%clk 00:05:20]} {[%emt 00:00:03]} 45. Be5 {[%clk 00:02:45]}
{[%emt 00:00:01]} g4 {[%clk 00:05:04]} {[%emt 00:00:26]} 46. Kc5 {[%clk
00:02:55]} g3 {[%clk 00:04:52]} {[%emt 00:00:22]} 47. a6+ {[%clk 00:02:59]}
{[%emt 00:00:05]} Kxa6 {[%clk 00:05:01]} 48. Kxc6 {[%clk 00:03:08]} {[%emt
00:00:01]} Rxe5 {[%clk 00:04:59]} {[%emt 00:00:12]} 49. dxe5 {[%clk 00:03:00]}
{[%emt 00:00:18]} g2 {[%clk 00:05:08]} {[%emt 00:00:01]} 50. e6 {[%clk
00:03:09]} {[%emt 00:00:02]} g1=Q {[%clk 00:05:15]} {[%emt 00:00:03]} 51. e7
{[%clk 00:03:18]} Qe3 {[%clk 00:05:11]} {[%emt 00:00:14]} 52. Kd7 {[%clk
00:03:23]} {[%emt 00:00:05]} Qd4+ {[%clk 00:05:19]} {[%emt 00:00:03]} 53. Kc8
{[%clk 00:03:24]} {[%emt 00:00:08]} Qc5+ {[%clk 00:05:25]} {[%emt 00:00:04]} 54.
Kd7 {[%clk 00:03:33]} {[%emt 00:00:01]} Qd5+ {[%clk 00:05:32]} {[%emt
00:00:02]} 55. Kc8 {[%clk 00:03:39]} {[%emt 00:00:05]} Qe6+ {[%clk 00:05:40]}
{[%emt 00:00:02]} 56. Kd8 {[%clk 00:03:47]} {[%emt 00:00:02]} Qd6+ {[%clk
00:05:44]} {[%emt 00:00:06]} 57. Ke8 {[%clk 00:03:56]} {[%emt 00:00:01]} Kb7
{[%clk 00:05:52]} {[%emt 00:00:03]} 58. Kf7 {[%clk 00:04:04]} {[%emt 00:00:01]}
Qf4 {[%clk 00:06:01]} {[%emt 00:00:01]} 59. Kg6 {[%clk 00:03:16]} {[%emt
00:00:58]} Qe5 {[%clk 00:06:02]} {[%emt 00:00:08]} 60. Kf7 {[%clk 00:03:23]}
{[%emt 00:00:04]} Qf5 {[%clk 00:06:12]} 61. Ke8 {[%clk 00:03:29]} {[%emt
00:00:04]} Kc6 {[%clk 00:06:13]} {[%emt 00:00:07]} 0-1